bitfinex-derivatives/quotes_ETHF0:USTF0_20251103
["timestamp","ask_amount","ask_price","bid_price","bid_amount"]
[1762189614438,10.299,3626.8,3623.8,3.2078]
[1762189614439,1.94676172,3627.3,3627.2,0.33]
[1762189614739,0.8676,3627.5,3627.2,4.68537006]
[1762189614941,0.05225477,3627.4,3627.3,1.47757006]
[1762189615138,0.05225477,3627.4,3627.2,3.2078]
[1762189615340,1.4485,3627.3,3627.2,3.21041923]
[1762189616032,1.50075477,3627.3,3627.2,3.21041923]
[1762189616232,1.50075477,3627.3,3627.2,4.1899525]
[1762189616439,1.50075477,3627.3,3627.2,3.21041923]
[1762189616939,8.39275477,3627.3,3627.2,3.21041923]
[1762189617133,8.39275477,3627.3,3627.2,0.00261923]
[1762189618146,8.39275477,3627.3,3626.4,4.18733327]
[1762189618147,2.3161,3626.5,3626.4,4.18733327]
[1762189618443,2.3161,3626.5,3626.4,3.2078]
[1762189619147,2.36835477,3626.5,3626.4,3.21035545]
[1762189620641,0.91985477,3626.5,3626.4,3.21035545]
[1762189620848,0.05225477,3626.5,3626.4,3.54035545]
[1762189622238,0.00255282,3627.4,3626.9,0.33]
[1762189622543,1.94486,3627.3,3627.2,3.2078]
[1762189622944,1.4485,3626.8,3626.7,3.94198649]
[1762189623146,1.94494,3626.7,3626.5,0.73418649]
[1762189623340,1.36407,3626.5,3626.4,0.73674194]
[1762189623547,2.81257,3626.5,3626.4,0.00255545]
[1762189624051,1.36414,3626.0,3625.9,3.2078]
[1762189624244,2.81264,3626.0,3625.9,3.2078]
[1762189624551,2.81264,3626.0,3625.9,3.15554523]
[1762189624739,2.3161,3626.0,3625.5,0.73418649]
[1762189625047,0.8676,3625.5,3625.4,3.94198649]
[1762189625248,0.8676,3625.5,3625.4,3.21045365]
[1762189625840,12.5691,3625.5,3625.4,3.21045365]
[1762189626047,12.5691,3625.5,3625.4,0.00265365]
[1762189627243,19.4651,3625.5,3625.4,0.00265365]
[1762189628341,2.3161,3625.5,3625.4,0.00265365]
[1762189628550,12.5611,3625.5,3625.4,0.00265365]
[1762189629446,2.3161,3625.5,3625.4,0.00265365]
[1762189630343,0.8676,3625.5,3625.4,0.00265365]
[1762189630543,2.3161,3625.5,3625.4,0.00265365]
[1762189631549,9.70871,3625.5,3625.4,0.00265365]
[1762189632251,2.81271,3625.5,3625.4,0.00265365]
[1762189632846,13.04271,3625.5,3625.4,0.00265365]
[1762189635552,11.59421,3625.5,3625.4,0.00265365]
[1762189635747,13.01961,3625.5,3625.4,0.00265365]
[1762189637446,19.91561,3625.5,3625.4,0.00265365]
[1762189637651,13.01961,3625.5,3625.4,0.00265365]
[1762189641152,2.78961,3625.5,3625.4,0.00265365]
[1762189641359,13.00661,3625.5,3625.4,0.00265365]
[1762189646561,1.92203,3625.3,3625.2,3.2078]
[1762189646764,1.92203,3625.3,3625.2,3.94198649]
[1762189646960,1.92203,3625.3,3625.2,3.94642409]
[1762189647159,1.92203,3625.3,3625.2,3.94652049]
[1762189647358,1.92203,3625.3,3625.2,3.94696453]
[1762189647658,1.92203,3625.3,3625.2,3.21051388]
[1762189648459,1.92203,3625.3,3625.2,3.94983393]
[1762189649164,1.92203,3625.3,3625.2,3.21051388]
[1762189651363,1.92203,3625.3,3625.2,4.1894292]
[1762189651761,10.71263,3625.3,3625.2,4.4404292]
[1762189651958,1.3642,3625.5,3625.4,0.0663]
[1762189652159,11.5792,3625.5,3625.4,1.54403273]
[1762189652368,11.5792,3625.5,3625.4,0.0663]
[1762189652558,11.0826,3625.5,3625.4,0.0663]
[1762189652756,1.24116,3626.6,3625.9,0.0663]
[1762189653062,1.24116,3626.6,3626.3,3.2078]
[1762189653063,0.49648,3626.4,3626.3,3.2078]
[1762189653364,10.71148,3626.4,3626.3,3.2078]
[1762189653760,10.215,3626.4,3626.3,3.2741]
[1762189653959,8.68990665,3626.9,3626.4,0.0663]
[1762189654154,0.49646,3626.6,3626.4,0.0663]
[1762189654354,0.49646,3626.6,3626.5,0.0663]
[1762189654562,10.215,3626.8,3626.5,0.0663]
[1762189654754,10.71142,3626.8,3626.7,4.75402968]
[1762189655166,10.71042,3626.8,3626.7,4.75402968]
[1762189655360,10.71042,3626.8,3626.7,4.75261345]
[1762189655757,12.07592,3626.8,3626.7,3.2078]
[1762189656061,1.3655,3626.7,3626.6,0.98575888]
[1762189656267,1.86195,3626.6,3626.5,0.98575888]
[1762189656567,2.1408,3626.5,3626.4,0.98575888]
[1762189656757,12.3538,3626.5,3626.4,0.98575888]
[1762189656961,1.86198,3626.4,3626.3,0.73950834]
[1762189657161,0.49649,3626.3,3626.2,4.19355888]
[1762189657363,0.49649,3626.3,3626.2,4.25985888]
[1762189657564,10.70849,3626.3,3626.2,3.2741]
[1762189657769,1.27176,3626.5,3626.4,0.0663]
[1762189657969,9.07076,3626.5,3626.4,1.54481345]
[1762189658168,0.7753,3626.5,3626.4,1.54481345]
[1762189658469,1.27176,3626.5,3626.4,0.0663]
[1762189659764,1.86197,3626.4,3626.3,1.47851345]
[1762189659964,0.49649,3626.3,3626.2,4.68631345]
[1762189660366,1.86199,3626.3,3626.2,3.2078]
[1762189660767,1.86199,3626.3,3626.2,4.19275365]
[1762189661375,1.86199,3626.3,3626.2,3.2078]
[1762189661673,1.86202,3626.1,3626.0,0.98495365]
[1762189661867,12.07202,3626.1,3626.0,0.98495365]
[1762189662468,0.7753,3626.5,3626.0,0.0663]
[1762189662673,12.84726,3626.5,3626.4,3.94641487]
[1762189662973,2.63726,3626.5,3626.4,4.19261983]
[1762189663168,12.84726,3626.5,3626.4,4.19261983]
[1762189664266,12.84726,3626.5,3626.4,3.2078]
[1762189664662,11.48176,3626.5,3626.4,3.2078]
[1762189664868,0.7753,3626.5,3626.4,4.19261983]
[1762189665073,2.55726,3626.5,3626.4,3.2078]
[1762189666178,1.27176,3626.5,3626.4,3.2078]
[1762189666774,2.55726,3626.5,3626.4,3.2078]
[1762189667477,1.27176,3626.5,3626.4,3.2078]
[1762189667771,1.27176,3626.5,3626.2,1.47633393]
[1762189667772,1.78199,3626.3,3626.2,1.47633393]
[1762189667965,0.49651,3626.1,3626.0,3.2078]
[1762189668481,10.207,3626.3,3626.0,3.2078]
[1762189668777,0.49651,3626.1,3626.0,3.2078]
[1762189669076,0.7673,3626.5,3626.0,3.2078]
[1762189669272,0.7673,3626.5,3626.4,3.2078]
[1762189669273,1.26376,3626.5,3626.4,3.2078]
[1762189669465,2.54926,3626.5,3626.4,3.2078]
[1762189670472,1.26376,3626.5,3626.4,4.19092355]
[1762189670775,1.26376,3626.5,3626.4,3.2078]
[1762189670970,2.0528,3626.5,3626.4,4.19092355]
[1762189671173,1.26376,3626.5,3626.4,4.19092355]
[1762189671476,1.26376,3626.5,3626.4,3.2078]
[1762189671674,1.26376,3626.5,3626.4,4.19096535]
[1762189671976,2.54926,3626.5,3626.4,4.19096535]
[1762189672972,1.782,3626.2,3626.1,0.98316535]
[1762189673269,1.782,3626.2,3625.9,0.98316535]
[1762189673270,0.49653,3626.0,3625.9,0.98316535]
[1762189673576,1.78207,3625.7,3625.6,4.19096535]
[1762189673776,11.98607,3625.7,3625.6,4.19096535]
[1762189673976,11.98607,3625.7,3625.6,3.2078]
[1762189675279,11.98607,3625.7,3625.6,4.19204337]
[1762189676275,11.98607,3625.7,3625.6,3.2078]
[1762189677469,11.98607,3625.7,3625.6,4.19331861]
[1762189677677,11.98607,3625.7,3625.6,3.2078]
[1762189678074,11.98607,3625.7,3625.4,0.98551861]
[1762189678075,2.5494,3625.5,3625.4,0.98551861]
[1762189678375,1.78213,3625.3,3625.2,4.19603249]
[1762189678575,11.98413,3625.3,3625.2,4.19603249]
[1762189679470,11.98413,3625.3,3625.2,3.21051388]
[1762189679676,11.98413,3625.3,3625.2,4.19697483]
[1762189679975,1.78214,3625.2,3625.1,0.98646095]
[1762189680783,1.78214,3625.2,3625.1,0.98845104]
[1762189681079,0.49664,3625.2,3625.1,0.00199009]
[1762189681277,0.49664,3625.2,3625.1,2.72253959]
[1762189681475,10.202,3625.4,3625.1,2.72760378]
[1762189681672,10.202,3625.4,3625.3,1.2459]
[1762189682276,0.49659,3625.6,3625.5,1.2459]
[1762189682480,10.69759,3625.6,3625.5,1.2459]
[1762189682776,0.7673,3626.5,3625.5,0.7609]
[1762189682983,0.49649,3626.4,3626.3,0.98600314]
[1762189683278,10.69746,3626.5,3626.3,2.72490471]
[1762189683476,10.201,3626.5,3626.4,5.93270471]
[1762189683681,10.69746,3626.5,3626.4,5.93270471]
[1762189684669,10.201,3626.5,3626.4,4.4537]
[1762189684869,1.24094,3627.2,3626.4,4.4537]
[1762189685071,10.69741,3626.9,3626.8,0.9850305]
[1762189685278,0.8676,3627.0,3626.7,1.47754575]
[1762189685482,11.0676,3627.0,3626.7,1.47754575]
[1762189685674,0.49641,3626.9,3626.7,1.47754575]
[1762189685870,1.78191,3626.9,3626.8,1.47754575]
[1762189686074,1.2855,3626.8,3626.7,1.47754575]
[1762189686271,2.54926,3626.5,3626.4,1.47754575]
[1762189686583,1.2855,3626.2,3626.1,0.98545449]
[1762189686878,0.49654,3625.9,3625.8,1.2459]
[1762189687079,0.49654,3626.0,3625.8,2.72344575]
[1762189687284,10.199,3626.2,3626.1,1.2459]
[1762189687481,11.4845,3626.2,3626.1,0.98552542]
[1762189688376,10.199,3626.2,3626.1,1.2459]
[1762189689584,10.199,3626.2,3625.9,1.47754575]
[1762189689585,2.0528,3626.0,3625.9,1.47754575]
[1762189689981,0.7673,3626.0,3625.9,1.47754575]
[1762189690183,10.199,3626.2,3626.1,1.2459]
[1762189690380,10.199,3626.2,3625.9,1.47754575]
[1762189690582,10.199,3626.2,3626.0,1.47754575]
[1762189690783,0.49652,3626.1,3626.0,1.47754575]
[1762189690984,1.78202,3626.1,3626.0,1.47754575]
[1762189691385,10.199,3626.2,3626.0,1.47754575]
[1762189691579,10.199,3626.2,3626.0,2.72344575]
[1762189691787,1.26376,3626.5,3626.1,2.72344575]
[1762189691988,2.54926,3626.5,3626.4,0.9862462]
[1762189692181,11.92726,3626.5,3626.4,0.9862462]
[1762189692382,0.49649,3626.3,3626.2,2.72344575]
[1762189692580,10.1453,3626.5,3626.2,2.72344575]
[1762189692581,10.1453,3626.5,3626.2,5.93124575]
[1762189692784,10.64177,3626.5,3626.3,1.47754575]
[1762189693385,9.87446,3626.5,3626.4,1.2459]
[1762189694387,9.87446,3626.5,3626.3,2.64454575]
[1762189694388,9.378,3626.5,3626.3,2.64454575]
[1762189694581,9.87446,3626.5,3626.4,1.167]
[1762189694888,0.49646,3626.5,3626.4,1.167]
[1762189695291,0.49645,3626.6,3626.4,1.167]
[1762189695593,0.49645,3626.6,3626.5,2.64832993]
[1762189695983,0.49645,3626.6,3626.5,1.167]
[1762189697983,0.49645,3626.6,3626.5,1.6975]
[1762189698190,10.193,3626.8,3626.7,1.167]
[1762189698881,0.8676,3627.0,3626.7,1.167]
[1762189699192,1.69143,3626.7,3626.6,4.69052665]
[1762189699492,0.49643,3626.7,3626.6,4.69052665]
[1762189699685,0.49643,3626.7,3626.6,5.85752665]
[1762189699886,1.69143,3626.7,3626.6,5.85752665]
[1762189700087,1.69143,3626.7,3626.6,1.48272665]
[1762189700582,1.69149,3626.3,3626.2,1.48272665]
[1762189700786,0.7438,3626.5,3626.0,1.48272665]
[1762189700787,1.69151,3626.1,3626.0,1.48272665]
[1762189701094,1.69151,3626.1,3626.0,2.64972665]
[1762189701293,0.49651,3626.1,3626.0,2.64972665]
[1762189701592,0.4965,3626.2,3626.1,1.167]
[1762189701793,0.4965,3626.2,3626.1,2.64972665]
[1762189702092,1.6915,3626.2,3626.1,1.48272665]
[1762189702491,10.19,3626.3,3626.0,2.64972665]
[1762189702683,10.189,3626.3,3626.2,1.15983133]
[1762189702889,10.68549,3626.3,3626.2,1.15983133]
[1762189703086,10.68549,3626.3,3626.2,4.36763133]
[1762189703487,10.189,3626.3,3626.2,5.85035798]
[1762189704092,3.24896,3627.5,3626.2,5.85035798]
[1762189704093,0.7438,3627.0,3626.2,5.85035798]
[1762189704395,6.399,3626.9,3626.8,2.15372039]
[1762189704585,6.89541,3626.9,3626.8,2.15372039]
[1762189704794,8.09041,3626.9,3626.8,1.48016643]
[1762189704988,6.89541,3626.9,3626.8,1.48016643]
[1762189705390,6.399,3626.9,3626.8,1.48016643]
[1762189705586,8.09041,3626.9,3626.8,1.48016643]
[1762189705789,1.69142,3626.8,3626.7,3.2078]
[1762189706497,1.69142,3626.8,3626.7,4.68756287]
[1762189706695,0.49642,3626.8,3626.7,5.85456287]
[1762189706887,6.399,3626.9,3626.8,1.167]
[1762189707097,6.399,3626.9,3626.8,2.64688571]
[1762189707395,6.89541,3626.9,3626.8,2.64688571]
[1762189707896,0.4964,3627.0,3626.8,2.64688571]
[1762189708089,2.48124,3628.1,3626.7,3.2078]
[1762189708090,3.9516,3629.0,3628.5,1.174]
[1762189708292,0.49615,3628.8,3628.7,0.73867847]
[1762189708487,0.49617,3628.7,3628.5,0.98611989]
[1762189709098,0.49951594,3628.7,3628.5,0.98892672]
[1762189709402,4.3572,3628.6,3628.5,0.00280683]
[1762189709699,5.3572,3628.6,3628.5,0.00280683]
[1762189711495,12.2468,3628.6,3628.5,0.00280683]
[1762189711690,12.2468,3628.6,3628.0,0.73865284]
[1762189711691,1.1494,3628.1,3628.0,0.73865284]
[1762189711891,11.82764,3628.1,3628.0,0.73865284]
[1762189712698,11.82764,3628.1,3628.0,0.74221453]
[1762189712699,12.82764,3628.1,3628.0,0.74221453]
[1762189712891,2.1494,3628.1,3628.0,0.00356169]
[1762189714305,1.0,3628.1,3628.0,4.38536169]
[1762189714612,1.0,3628.1,3628.0,0.00356169]
[1762189714807,2.1494,3628.1,3628.0,0.74158132]
[1762189715012,2.64564,3628.1,3628.0,0.74158132]
[1762189715807,1.0,3628.1,3628.0,0.74158132]
[1762189716005,1.0,3628.1,3628.0,1.91558132]
[1762189716201,11.67524,3628.1,3628.0,1.91558132]
[1762189716403,12.82464,3628.1,3628.0,0.74158132]
[1762189716614,12.82464,3628.1,3628.0,0.00356169]
[1762189716814,12.82364,3628.1,3628.0,0.00356169]
[1762189718108,12.82264,3628.1,3628.0,0.00356169]
[1762189718304,2.64564,3628.1,3628.0,0.00356169]
[1762189718505,12.82264,3628.1,3628.0,0.00356169]
[1762189718704,2.64564,3628.1,3628.0,0.00356169]
[1762189719105,16.02944,3628.1,3628.0,0.00356169]
[1762189719311,1.64574,3627.4,3627.3,0.98385758]
[1762189719511,1.64578,3627.1,3627.0,0.98385758]
[1762189719713,2.32099,3627.0,3626.9,0.98385758]
[1762189719909,1.1494,3626.7,3626.6,0.98385758]
[1762189720218,1.1494,3626.7,3626.6,0.98743699]
[1762189720416,1.64584,3626.7,3626.6,0.98743699]
[1762189720710,2.64584,3626.7,3626.6,0.98743699]
[1762189721709,0.49648,3626.4,3626.3,4.67441683]
[1762189721916,10.67148,3626.4,3626.3,5.84841683]
[1762189722216,10.67148,3626.4,3626.3,2.65317984]
[1762189722416,10.175,3626.4,3626.3,2.65317984]
[1762189722612,10.175,3626.4,3626.3,5.86097984]
[1762189722812,0.49644,3626.8,3626.3,4.38433968]
[1762189723008,0.49645,3626.6,3626.5,1.174]
[1762189723310,0.49648,3626.4,3626.3,4.68765187]
[1762189723511,0.49648,3626.4,3626.3,5.86165187]
[1762189724109,0.49645,3626.6,3626.4,1.174]
[1762189724310,0.49646,3626.5,3626.4,1.174]
[1762189724709,0.6752,3627.0,3626.6,1.174]
[1762189724911,7.643,3626.9,3626.8,1.0866]
[1762189725212,10.173,3626.9,3626.8,2.56391219]
[1762189725410,10.173,3626.9,3626.8,1.0866]
[1762189725612,0.49637,3627.2,3626.7,3.2078]
[1762189725917,10.66941,3626.9,3626.8,1.0866]
[1762189726316,10.173,3626.9,3626.8,1.0866]
[1762189726521,10.66941,3626.9,3626.8,1.0866]
[1762189726921,3.2078,3627.4,3626.8,1.0866]
[1762189727114,10.6694,3627.0,3626.9,1.0866]
[1762189727918,10.173,3627.0,3626.9,1.0866]
[1762189728127,0.636,3627.5,3627.1,1.0866]
[1762189728424,0.49636,3627.3,3627.2,1.0866]
[1762189729019,10.66636,3627.3,3627.2,1.0866]
[1762189729221,0.49636,3627.3,3627.2,1.0866]
[1762189729419,10.66636,3627.3,3627.2,1.0866]
[1762189730022,0.6752,3628.0,3627.2,1.0866]
[1762189730023,0.6752,3628.0,3627.5,1.0866]
[1762189730219,10.17,3627.9,3627.6,1.47701864]
[1762189730423,0.49629,3627.8,3627.6,1.47701864]
[1762189730625,0.49631,3627.6,3627.5,4.9881]
[1762189731227,10.66531,3627.6,3627.5,4.2944]
[1762189732227,1.64747,3627.2,3627.1,3.2078]
[1762189732524,11.81547,3627.2,3627.1,4.68558699]
[1762189733426,11.81547,3627.2,3627.1,3.2078]
[1762189733628,11.3191,3627.2,3627.1,3.2078]
[1762189733927,11.81547,3627.2,3627.1,3.2078]
[1762189735724,1.24071,3627.9,3627.1,3.2078]
[1762189735725,0.00334594,3628.7,3628.6,0.9432]
[1762189735927,0.22031613,3628.7,3628.3,3.2078]
[1762189736126,0.636,3628.5,3628.3,3.2078]
[1762189736324,2.27,3628.4,3628.3,3.2078]
[1762189736524,2.27334594,3628.4,3628.3,3.2078]
[1762189736725,0.636,3629.0,3628.3,5.17634361]
[1762189736930,0.00232468,3628.4,3628.3,3.44582768]
[1762189737133,0.00232468,3628.4,3628.3,4.68508407]
[1762189737730,0.00232468,3628.4,3628.3,3.2078]
[1762189737932,0.00232468,3628.4,3628.3,3.4160119]
[1762189740329,0.00232468,3628.4,3628.3,3.2078]
[1762189740719,1.24011,3629.6,3628.3,3.2078]
[1762189740720,0.636,3630.0,3628.3,24.67567612]
[1762189740926,0.636,3630.0,3629.9,4.68190753]
[1762189741223,0.636,3631.2,3629.9,4.68190753]
[1762189741422,2.8,3630.9,3630.5,3.2078]
[1762189741628,8.629,3630.6,3630.5,3.2078]
[1762189741827,8.63225817,3630.6,3630.5,3.2099153]
[1762189742026,0.63925817,3630.6,3630.5,3.2099153]
[1762189742631,0.00325817,3630.6,3630.5,3.7058353]
[1762189743330,0.63925817,3630.6,3630.5,3.2099153]
[1762189743628,1.79035817,3630.6,3630.5,3.2099153]
[1762189744028,12.38835817,3630.6,3630.5,3.2099153]
[1762189744427,1.79035817,3630.6,3630.5,2.89768796]
[1762189744731,12.38235817,3630.6,3630.5,2.89768796]
[1762189744926,12.38235817,3630.6,3629.8,3.2078]
[1762189744927,0.49601,3629.9,3629.8,3.2078]
[1762189745131,12.23811,3629.9,3629.8,3.2078]
[1762189745838,11.7421,3629.9,3629.8,3.2078]
[1762189746138,1.13516817,3630.6,3629.8,4.79240927]
[1762189746327,1.13516817,3630.6,3630.2,3.2078]
[1762189746328,6.24192,3630.5,3630.2,3.2078]
[1762189746627,0.00325817,3630.6,3630.2,3.2078]
[1762189746836,0.00325817,3630.6,3630.5,1.0866]
[1762189747132,3.79225817,3630.6,3630.2,3.2078]
[1762189747535,0.49594,3630.4,3630.2,3.2078]
[1762189747731,10.577,3630.3,3630.2,3.2078]
[1762189748128,0.49594,3630.4,3630.2,3.2078]
[1762189748428,10.58,3630.3,3630.2,3.2078]
[1762189748834,11.7311,3630.3,3629.8,0.00200927]
[1762189749034,10.58,3630.3,3629.8,0.00200927]
[1762189749435,0.49599,3630.0,3629.8,0.00200927]
[1762189751333,11.05393,3630.4,3630.2,1.0866]
[1762189751533,0.00325817,3630.6,3630.2,1.0866]
[1762189751835,0.00325817,3630.6,3630.4,4.2944]
[1762189752037,0.00325817,3630.6,3630.5,1.0866]
[1762189753938,0.49915817,3630.6,3630.5,1.0866]
[1762189754438,0.00325817,3630.6,3630.5,1.58252]
[1762189754629,0.49915817,3630.6,3630.5,1.0866]
[1762189755940,0.49544,3634.0,3633.9,1.1267]
[1762189756132,1.61427,3633.8,3633.7,3.10922014]
[1762189756433,0.49559,3632.9,3632.4,4.18157162]
[1762189756629,0.16372507,3632.7,3632.5,3.2078]
[1762189756835,0.49563,3632.6,3632.5,3.21067203]
[1762189757133,12.28343,3632.6,3632.5,3.21067203]
[1762189757334,0.16593414,3632.7,3632.5,3.21067203]
[1762189757335,0.66155414,3632.7,3632.5,3.21067203]
[1762189757637,0.16372507,3632.6,3632.5,3.21067203]
[1762189757827,10.82872507,3632.6,3632.5,3.21067203]
[1762189758029,0.16372507,3632.6,3632.5,3.21067203]
[1762189758230,10.82572507,3632.6,3632.5,3.21067203]
[1762189759039,10.82272507,3632.6,3632.5,4.33737203]
[1762189759230,10.82272507,3632.6,3632.5,3.21067203]
[1762189759424,0.16372507,3632.6,3632.5,1.21067203]
[1762189759630,0.16372507,3632.6,3632.5,2.33737203]
[1762189760632,0.49551,3633.5,3632.6,1.1267]
[1762189760844,4.432,3633.5,3633.2,3.2078]
[1762189761541,0.49553,3633.4,3633.2,1.2078]
[1762189761746,0.49826391,3633.4,3633.2,1.2078]
[1762189762537,0.00273391,3633.4,3633.3,1.1267]
[1762189763546,0.49826391,3633.4,3633.3,0.00356505]
[1762189764240,0.49556,3633.2,3632.9,0.33806505]
[1762189764439,10.60073391,3633.4,3633.1,0.6177]
[1762189764944,0.49555,3633.2,3632.6,3.2078]
[1762189765141,10.60073391,3633.4,3632.6,3.70635015]
[1762189765344,0.49555,3633.2,3632.6,3.70635015]
[1762189765543,0.49826391,3633.4,3632.6,3.21073015]
[1762189765845,0.00273391,3633.4,3632.6,3.21073015]
[1762189766040,0.00273391,3633.4,3632.8,0.4956]
[1762189766240,0.49826391,3633.4,3632.8,0.4956]
[1762189766444,0.49825391,3633.4,3632.9,0.49558]
[1762189766746,0.49825391,3633.4,3632.6,3.21073015]
[1762189766747,0.00273391,3633.4,3632.6,3.21073015]
[1762189766948,0.49825391,3633.4,3633.0,0.49556]
[1762189767345,0.00273391,3633.4,3633.3,0.6242]
[1762189768443,3.2078,3633.7,3633.6,0.6215]
[1762189769448,3.21024305,3633.7,3633.6,0.6215]
[1762189771051,0.00244305,3633.7,3633.6,0.6215]
[1762189771248,3.2078,3634.1,3634.0,0.619]
[1762189771449,3.70317,3634.5,3634.4,0.619]
[1762189772156,0.49538,3634.4,3634.3,0.20511009]
[1762189772356,0.49765069,3634.4,3634.0,0.49543]
[1762189772651,0.00227069,3634.4,3634.1,0.49542]
[1762189772847,0.00227069,3634.4,3633.5,1.23877]
[1762189773049,0.49542,3634.1,3633.4,3.2078]
[1762189773355,0.49545,3633.9,3633.8,0.619]
[1762189775257,0.49544,3634.0,3633.9,0.619]
[1762189775658,0.49543,3634.0,3633.9,0.619]
[1762189777351,0.00227069,3634.4,3634.0,0.619]
[1762189777554,0.49545,3633.9,3633.7,0.49547]
[1762189777759,0.7965,3634.2,3633.9,0.49543]
[1762189777960,0.49542,3634.1,3634.0,0.619]
[1762189778662,0.49547,3633.7,3633.6,0.82162692]
[1762189779167,0.7965,3634.2,3633.7,0.49547]
[1762189779356,0.7965,3634.2,3634.1,0.72827673]
[1762189779964,0.7965,3634.2,3634.1,0.72846305]
[1762189780161,0.7965,3634.2,3633.7,0.49548]
[1762189780361,0.7965,3634.2,3633.6,0.20262692]
[1762189780665,0.7965,3634.2,3634.0,0.49543]
[1762189781163,0.49543,3634.1,3634.0,0.619]
[1762189781358,0.49543,3634.0,3633.7,0.49547]
[1762189781563,0.49542,3634.1,3634.0,0.619]
[1762189781761,1.29191,3634.2,3634.1,0.49542]
[1762189781960,0.7965,3634.2,3634.0,0.49543]
[1762189782162,1.29192,3634.2,3634.0,0.49543]
[1762189782470,0.49542,3634.1,3634.0,1.11443]
[1762189782760,0.49542,3634.1,3634.0,0.619]
[1762189783163,0.49545,3633.9,3633.8,0.619]
[1762189783369,0.49543,3634.1,3634.0,0.619]
[1762189784368,0.7965,3634.2,3634.0,1.11443]
[1762189784869,0.49542,3634.1,3634.0,0.619]
[1762189785063,0.49765069,3634.4,3634.3,0.453]
[1762189785266,10.42827069,3634.4,3634.3,0.94839]
[1762189785565,10.42827069,3634.4,3634.0,1.96854361]
[1762189785868,0.49539,3634.3,3634.2,0.49539]
[1762189786069,0.49539,3634.3,3634.2,0.94839]
[1762189786362,4.0043,3634.5,3634.4,0.94838]
[1762189786866,4.49966,3634.5,3634.4,0.94838]
[1762189787162,4.0043,3634.5,3634.4,0.453]
[1762189787368,0.49539,3634.3,3634.2,1.96854361]
[1762189787867,0.49539,3634.3,3634.2,2.46395361]
[1762189788266,0.49539,3634.3,3634.2,1.96854361]
[1762189788467,4.00742596,3634.5,3634.2,1.96854361]
[1762189788669,0.49539,3634.3,3634.2,1.96854361]
[1762189788966,0.79962596,3634.5,3634.4,0.49538]
[1762189789169,10.91534,3634.7,3634.5,0.49537]
[1762189789368,10.91534,3634.7,3634.6,1.2495]
[1762189789571,1.74208,3634.4,3634.3,1.96854361]
[1762189789867,0.49538,3634.4,3634.3,1.96854361]
[1762189790064,0.49538,3634.4,3634.3,1.2495]
[1762189790266,1.74402392,3634.4,3634.3,1.95866577]
[1762189791066,1.7421,3634.3,3634.2,1.95866577]
[1762189791265,1.74211,3634.2,3634.1,1.95866577]
[1762189792459,3.20974392,3634.4,3633.8,0.49546]
[1762189792669,1.74209,3634.3,3634.2,1.95997751]
[1762189792871,12.11009,3634.3,3634.2,1.95997751]
[1762189793369,1.74209,3634.3,3634.2,1.95997751]
[1762189793566,12.10609,3634.3,3634.2,1.95997751]
[1762189794172,1.2467,3633.8,3633.7,2.45894514]
[1762189794361,1.2467,3633.8,3633.6,2.95442514]
[1762189794569,1.2467,3633.8,3633.5,2.45894514]
[1762189794867,11.6027,3633.8,3633.7,0.49547]
[1762189795264,11.5997,3633.8,3633.7,0.49547]
[1762189795975,12.09516,3633.8,3633.5,2.45894514]
[1762189796172,12.08919,3633.7,3633.6,2.45894514]
[1762189796467,1.74221,3633.5,3633.4,2.45894514]
[1762189796667,0.7982,3633.5,3633.0,2.66582515]
[1762189796973,3.2078,3633.4,3633.0,2.66582515]
[1762189797370,0.49556,3633.1,3633.0,3.91532515]
[1762189797569,10.83656,3633.1,3633.0,3.91532515]
[1762189797865,10.83656,3633.1,3632.6,3.21073015]
[1762189797866,12.08182404,3633.1,3632.8,2.95454514]
[1762189798175,1.7423,3632.8,3632.7,2.45894514]
[1762189798373,1.7423,3632.8,3632.6,2.95749529]
[1762189798667,0.49561,3632.7,3632.6,2.46187529]
[1762189798868,1.74231,3632.7,3632.6,0.21340362]
[1762189799073,1.74231,3632.7,3632.6,0.70903362]
[1762189799074,1.2467,3632.7,3632.6,0.70903362]
[1762189799269,11.5777,3632.7,3632.6,0.70903362]
[1762189799474,12.07332,3632.7,3632.6,0.21340362]
[1762189799771,12.07332,3632.7,3632.6,0.00293015]
[1762189800273,1.2467,3632.7,3632.6,0.49856015]
[1762189800569,12.06731,3632.7,3632.6,0.00293015]
[1762189800872,12.06731,3632.7,3632.6,3.015e-05]
[1762189801175,2.0449,3632.0,3631.9,0.70068729]
[1762189801363,1.2467,3632.2,3632.1,0.49568]
[1762189801768,11.0982,3632.5,3631.8,5.66674514]
[1762189801963,1.74243,3631.9,3631.8,3.41771856]
[1762189802173,12.05443,3631.9,3631.8,0.20991856]
[1762189802664,12.05443,3631.9,3631.8,0.00289531]
[1762189803477,1.2467,3631.3,3631.2,8.91257905]
[1762189803675,1.2467,3630.4,3630.2,3.70375]
[1762189803975,11.5617,3630.4,3630.2,3.70375]
[1762189804167,11.5617,3630.4,3630.2,3.9166253]
[1762189804368,11.5651093,3630.4,3630.2,3.91895394]
[1762189804867,1.2467,3630.3,3630.2,3.21012864]
[1762189805264,1.2467,3630.3,3630.2,0.00232864]
[1762189807279,1.2467,3630.3,3630.2,0.97922733]
[1762189808076,1.2467,3630.3,3630.2,0.00232864]
[1762189808276,10.3184093,3630.4,3630.3,0.49594]
[1762189808477,1.2467,3630.3,3630.2,1.47518733]
[1762189808777,1.2467,3630.3,3630.2,0.00232864]
[1762189810175,1.2467,3630.3,3630.2,0.73344129]
[1762189810475,1.2467,3630.3,3630.2,0.00232864]
[1762189810872,10.3987,3630.3,3630.2,0.00232864]
[1762189811074,10.3987,3630.3,3630.2,0.73338033]
[1762189811668,10.89464,3630.3,3630.2,0.00232864]
[1762189811871,14.10244,3630.3,3630.2,0.00232864]
[1762189812074,1.2467,3629.8,3629.7,0.73105169]
[1762189812271,11.5127,3629.8,3629.7,0.73105169]
[1762189812478,11.5127,3629.8,3629.7,1.22708169]